fUSD/lending_fUSD_20250206
["ID","MTS","AMOUNT","RATE_DAILY","PERIOD"]
[351901699,1738831895313,-500.0,0.0002,3]
[351901700,1738831895323,-511.28,0.0002,3]
[351901701,1738831895334,-500.0,0.0002,3]
[351901702,1738831895345,-500.0,0.0002,3]
[351901703,1738831895355,-500.0,0.0002,3]
[351901704,1738831895369,-511.28,0.0002,3]
[351901705,1738831895379,-506.37373026,0.0002,3]
[351901706,1738831895391,-500.0,0.0002,3]
[351901707,1738831895402,-500.0,0.0002,3]
[351901708,1738831895414,-500.0,0.0002,3]
[351901709,1738831895426,-500.0,0.0002,3]
[351901710,1738831895436,-511.28,0.0002,3]
[351901711,1738831895447,-500.0,0.0002,3]
[351901712,1738831895457,-500.0,0.0002,3]
[351901713,1738831895467,-500.0,0.0002,3]
[351901714,1738831895478,-501.42318138,0.0002,3]
[351901715,1738831895489,-500.0,0.0002,3]
[351901716,1738831895500,-511.28,0.0002,3]
[351901717,1738831895511,-500.0,0.0002,3]
[351901718,1738831895521,-500.0,0.0002,3]
[351901719,1738831895532,-503.48444046,0.0002,3]
[351901720,1738831895542,-500.0,0.0002,3]
[351901721,1738831895554,-500.0,0.0002,3]
[351901722,1738831895564,-511.28,0.0002,3]
[351901723,1738831895574,-500.0,0.0002,3]
[351901724,1738831895584,-500.0,0.0002,3]
[351901725,1738831895594,-500.0,0.0002,3]
[351901726,1738831895604,-511.32,0.0002,3]
[351901727,1738831895615,-500.0,0.0002,3]
[351901728,1738831895625,-500.0,0.0002,3]
[351901729,1738831895636,-500.0,0.0002,3]
[351901730,1738831895647,-500.0,0.0002,3]
[351901731,1738831895658,-500.0,0.0002,3]
[351901732,1738831895669,-507.48682411,0.0002,3]
[351901733,1738831895680,-500.0,0.0002,3]
[351901734,1738831895690,-500.0,0.0002,3]
[351901735,1738831895701,-500.0,0.0002,3]
[351901736,1738831895711,-500.0,0.0002,3]
[351901737,1738831895722,-500.0,0.0002,3]
[351901738,1738831895732,-500.0,0.0002,3]
[351901739,1738831895742,-500.0,0.0002,3]
[351901740,1738831895752,-500.0,0.0002,3]
[351901741,1738831895763,-500.0,0.0002,3]
[351901742,1738831895773,-502.52312805,0.0002,3]
[351901743,1738831895783,-500.0,0.0002,3]
[351901744,1738831895793,-500.0,0.0002,3]
[351901745,1738831895803,-500.0,0.0002,3]
[351901746,1738831895813,-500.0,0.0002,3]
[351901747,1738831895823,-500.0,0.0002,3]
[351901748,1738831895832,-500.0,0.0002,3]
[351901749,1738831895842,-491.72980557,0.0002,3]
[351901750,1738831895888,-500.0,0.0002,3]
[351901751,1738831895899,-637.68843907,0.0002,3]
[351901752,1738831895909,-609.4885481,0.0002,3]
[351901753,1738831895919,-500.0,0.0002,3]
[351901754,1738831895928,-500.0,0.0002,3]
[351901755,1738831895938,-367.53,0.0002,3]
[351901756,1738831895947,-500.0,0.0002,3]
[351901757,1738831895957,-500.0,0.0002,3]
[351901758,1738831895967,-500.0,0.0002,3]
[351901759,1738831895977,-500.0,0.0002,3]
[351901760,1738831895987,-500.0,0.0002,3]
[351901761,1738831895996,-500.0,0.0002,3]
[351901762,1738831896006,-500.0,0.0002,3]
[351901763,1738831896015,-500.0,0.0002,3]
[351901764,1738831896025,-500.0,0.0002,3]
[351901765,1738831896034,-500.0,0.0002,3]
[351901766,1738831896044,-525.38940355,0.0002,3]
[351901767,1738831896053,-500.0,0.0002,3]
[351901768,1738831896062,-500.0,0.0002,3]
[351901769,1738831896071,-500.0,0.0002,3]
[351901770,1738831896080,-423.36,0.0002,3]
[351901771,1738831896089,-500.0,0.0002,3]
[351901772,1738831896098,-500.0,0.0002,3]
[351901773,1738831896107,-500.0,0.0002,3]
[351901774,1738831896116,-500.0,0.0002,3]
[351901775,1738831896125,-500.0,0.0002,3]
[351901776,1738831896134,-500.0,0.0002,3]
[351901777,1738831896143,-500.0,0.0002,3]
[351901778,1738831896152,-500.0,0.0002,3]
[351901779,1738831896162,-167.00737626,0.0002,3]
[351901780,1738831896171,-500.0,0.0002,3]
[351901781,1738831896185,-500.0,0.0002,3]
[351901782,1738831896195,-500.0,0.0002,3]
[351901783,1738831896204,-556.34880234,0.0002,3]
[351901784,1738831896213,-500.0,0.0002,3]
[351901785,1738831896223,-500.0,0.0002,3]
[351901786,1738831896233,-500.0,0.0002,3]
[351901787,1738831896242,-500.0,0.0002,3]
[351901788,1738831896252,-505.78065803,0.0002,3]
[351901789,1738831896262,-500.0,0.0002,3]
[351901790,1738831896272,-500.0,0.0002,3]
[351901791,1738831896281,-500.0,0.0002,3]
[351901792,1738831896291,-500.90458694,0.0002,3]
[351901793,1738831896301,-500.0,0.0002,3]
[351901794,1738831896310,-500.0,0.0002,3]
[351901795,1738831896320,-264.30113047,0.0002,3]
[351901796,1738831896329,-500.0,0.0002,3]
[351901797,1738831896338,-500.0,0.0002,3]
[351901798,1738831896349,-500.0,0.0002,3]
[351901799,1738831896358,-500.0,0.0002,3]
[351901800,1738831896369,-500.0,0.0002,3]
[351901801,1738831896378,-500.0,0.0002,3]
[351901802,1738831896387,-500.0,0.0002,3]
[351901803,1738831896397,-506.98523305,0.0002,3]
[351901804,1738831896407,-570.89,0.0002,3]
[351901805,1738831896416,-500.0,0.0002,3]
[351901806,1738831896426,-500.0,0.0002,3]
[351901807,1738831896435,-500.0,0.0002,3]
[351901808,1738831896445,-570.89,0.0002,3]
[351901809,1738831896454,-500.0,0.0002,3]
[351901810,1738831896464,-500.0,0.0002,3]
[351901811,1738831896473,-500.0,0.0002,3]
[351901812,1738831896484,-500.0,0.0002,3]
[351901813,1738831896493,-500.0,0.0002,3]
[351901814,1738831896503,-570.89,0.0002,3]
[351901815,1738831896512,-500.0,0.0002,3]
[351901816,1738831896521,-500.0,0.0002,3]
[351901817,1738831896531,-500.0,0.0002,3]
[351901818,1738831896541,-500.0,0.0002,3]
[351901819,1738831896550,-500.0,0.0002,3]
[351901820,1738831896560,-570.89,0.0002,3]
[351901821,1738831896569,-500.0,0.0002,3]
[351901822,1738831896578,-500.0,0.0002,3]
[351901823,1738831896588,-500.70398151,0.0002,3]
[351901824,1738831896597,-500.0,0.0002,3]
[351901825,1738831896606,-500.0,0.0002,3]
[351901826,1738831896616,-500.0,0.0002,3]
[351901827,1738831896625,-500.0,0.0002,3]
[351901828,1738831896635,-500.0,0.0002,3]
[351901829,1738831896644,-500.0,0.0002,3]
[351901830,1738831896653,-570.89,0.0002,3]
[351901831,1738831896663,-500.0,0.0002,3]
[351901832,1738831896672,-500.0,0.0002,3]
[351901833,1738831896681,-500.0,0.0002,3]
[351901834,1738831896691,-500.0,0.0002,3]
[351901835,1738831896700,-500.0,0.0002,3]
[351901836,1738831896709,-500.0,0.0002,3]
[351901837,1738831896719,-571.70409109,0.0002,3]
[351901838,1738831896728,-500.0,0.0002,3]
[351901839,1738831896737,-500.0,0.0002,3]
[351901840,1738831896746,-500.0,0.0002,3]
[351901841,1738831896756,-570.89,0.0002,3]
[351901842,1738831896766,-471.39758965,0.0002,3]
[351901843,1738831896775,-500.0,0.0002,3]
[351901844,1738831896784,-411.23633972,0.0002,3]
[351901845,1738831896794,-500.0,0.0002,3]
[351901846,1738831896803,-500.0,0.0002,3]
[351901847,1738831896813,-500.0,0.0002,3]
[351901848,1738831896822,-30.80305974,0.0002,3]
[351901849,1738831896857,-500.505945,0.0002,3]
[351901850,1738831957206,200.0,0.0002,29]
[351901851,1738831971021,200.0,0.0002,29]
[351901857,1738832435664,413.81,0.00016658,30]
[351901858,1738832435868,413.81,0.00019242,30]
[351901861,1738832752947,840.2,0.0002,30]
[351901869,1738832798681,438.0,0.0002,30]
[351901891,1738833031872,-280.710003,8.699e-05,2]
[351901892,1738833031885,-172.418197,8.699e-05,2]
[351901893,1738833031895,-109.78996842,8.835e-05,2]
[351901894,1738833031978,-190.21003158,8.835e-05,2]
[351901895,1738833031987,-2805.61996842,8.836e-05,2]
[351901896,1738833031999,-294.33656805,8.836e-05,2]
[351901897,1738833032011,-367.78854615,8.836e-05,2]
[351901898,1738833032022,-3021.65651738,8.836e-05,2]
[351901899,1738833032032,-2493.6419,8.836e-05,2]
[351901900,1738833032042,-1259.5409,8.836e-05,2]
[351901901,1738833032052,-441.1091,8.836e-05,2]
[351901902,1738833032062,-180.45539977,8.836e-05,2]
[351901903,1738833032071,-1833.06708485,8.851e-05,2]
[351901904,1738833032134,-666.93291515,8.851e-05,2]
[351901905,1738833032143,-1000.0,8.851e-05,2]
[351901906,1738833032152,-4802.6099,8.973e-05,2]
[351901907,1738833032161,-500.0,9.569e-05,2]
[351901908,1738833032170,-420.0,9.718e-05,2]
[351901909,1738833032180,-158.283986,9.881e-05,2]
[351901910,1738833032189,-238.474706,9.881e-05,2]
[351901911,1738833032198,-233.649455,9.881e-05,2]
[351901912,1738833032207,-157.057323,9.881e-05,2]
[351901913,1738833032217,-150.0,0.00010017,2]
[351901914,1738833032226,-238.474706,0.00010018,2]
[351901915,1738833032236,-233.649455,0.00010018,2]
[351901916,1738833032246,-154.87,0.00010137,2]
[351901917,1738833032255,-238.474706,0.00010155,2]
[351901918,1738833032265,-233.649455,0.00010155,2]
[351901919,1738833032277,-238.474706,0.00010292,2]
[351901920,1738833032286,-233.649455,0.00010292,2]
[351901921,1738833032296,-238.474706,0.00010429,2]
[351901923,1738833032305,-233.649455,0.00010429,2]
[351901925,1738833032315,-238.474706,0.00010566,2]
[351901927,1738833032325,-233.649455,0.00010566,2]
[351901929,1738833032335,-238.474706,0.00010703,2]
[351901930,1738833032344,-233.649455,0.00010703,2]
[351901932,1738833032353,-238.474706,0.0001084,2]
[351901934,1738833032363,-233.649455,0.0001084,2]
[351901936,1738833032373,-238.474706,0.00010977,2]
[351901938,1738833032382,-233.649455,0.00010977,2]
[351901940,1738833032391,-238.474706,0.00011114,2]
[351901941,1738833032401,-233.649455,0.00011114,2]
[351901942,1738833032411,-238.474706,0.00011251,2]
[351901943,1738833032420,-233.649455,0.00011251,2]
[351901944,1738833032430,-238.474706,0.00011388,2]
[351901945,1738833032440,-233.649455,0.00011388,2]
[351901947,1738833032449,-180.45539977,0.00014219,2]
[351901948,1738833032459,-442.85,0.00014429,2]
[351901949,1738833032468,-1000.0,0.00016279,2]
[351901950,1738833032478,-186.67,0.00016303,2]
[351901951,1738833032487,-1872.573,0.00016305,2]
[351901952,1738833032497,-171.09,0.00016305,2]
[351901954,1738833032507,-168.806,0.00016305,2]
[351901956,1738833032517,-188.59,0.00016384,2]
[351901958,1738833032527,-500.0,0.00016555,2]
[351901960,1738833032541,-442.85,0.00016693,2]
[351901962,1738833032550,-200.0,0.00018082,2]
[351901964,1738833032560,-1000.0,0.00018314,2]
[351901966,1738833032570,-186.67,0.00018341,2]
[351901968,1738833032581,-150.0,0.00018345,2]
[351901970,1738833032591,-188.59,0.00018432,2]
[351901972,1738833032600,-9999.99,0.00018533,2]
[351901974,1738833032610,-153.55,0.000186,2]
[351901976,1738833032621,-442.85,0.00018957,2]
[351901978,1738833032631,-156.29,0.00019178,2]
[351901980,1738833032640,-492.59726738,0.0001921,2]
[351901982,1738833032650,-300.0,0.0001926,2]
[351901984,1738833032662,-150.0,0.0001926,2]
[351901986,1738833032672,-150.0,0.0001926,2]
[351901988,1738833032682,-150.0,0.0001926,2]
[351901989,1738833032692,-150.0,0.0001926,2]
[351901990,1738833032702,-600.0,0.000193,7]
[351901991,1738833032712,-431.43955898,0.00019361,2]
[351901992,1738833032723,-1300.0,0.000194,7]
[351901993,1738833032736,-1900.0,0.000195,7]
[351901994,1738833032749,-1383.0,0.00019599,2]
[351901995,1738833032759,-2600.0,0.000196,7]
[351901996,1738833032770,-431.43955898,0.00019608,2]
[351901997,1738833032780,-3200.0,0.000197,7]
[351901998,1738833032792,-180.45539977,0.00019701,2]
[351901999,1738833032802,-156.29,0.00019777,2]
[351902000,1738833032812,-1200.0,0.0001978,2]
[351902001,1738833032822,-3000.0,0.0001978,2]
[351902002,1738833032832,-11115.6548257,0.00019781,7]
[351902003,1738833032842,-1119.73085191,0.00019781,7]
[351902004,1738833032852,-600.0,0.000198,7]
[351902005,1738833032861,-1383.0,0.00019801,2]
[351902006,1738833032871,-158.268,0.00019817,2]
[351902007,1738833032882,-189.335,0.00019817,2]
[351902008,1738833032892,-431.43955898,0.00019882,2]
[351902009,1738833032902,-600.0,0.000199,7]
[351902010,1738833032912,-2886.9533508,0.00019937,2]
[351902011,1738833032922,-225.6232104,0.00019973,2]
[351902012,1738833032931,-153.75922793,0.00019973,2]
[351902013,1738833032942,-162.11028443,0.00019973,2]
[351902014,1738833032952,-500.0,0.00019973,2]
[351902015,1738833032961,-179.62507921,0.00019973,2]
[351902016,1738833032972,-277.25493448,0.00019973,2]
[351902017,1738833032981,-897.28,0.00019989,2]
[351902018,1738833032991,-897.28,0.0001999,2]
[351902019,1738833033001,-1248.36589689,0.00019999,5]
[351902020,1738833033012,-1217.21907473,0.00019999,14]
[351902021,1738833033022,-1651.37652127,0.00019999,5]
[351902022,1738833033032,-500.0,0.00019999,2]
[351902023,1738833033043,-22543.43394228,0.00019999,2]
[351902024,1738833033057,-5450.527,0.00019999,2]
[351902025,1738833033078,-11115.65482573,0.00019999,2]
[351902026,1738833033091,-540.49795588,0.00019999,2]
[351902027,1738833033103,-1472.14757156,0.00019999,2]
[351902028,1738833033115,-947.31015434,0.00019999,2]
[351902029,1738833033140,-5786.76748901,0.00019999,2]
[351902035,1738833037742,-166531.02345905,0.00019999,2]
[351902036,1738833037796,-8956.96546051,0.00019999,2]
[351902037,1738833037808,-21734.71271618,0.00019999,2]
[351902038,1738833037819,-1626.7101744,0.00019999,2]
[351902039,1738833037852,-3294.24925106,0.00019999,2]
[351902040,1738833037862,-1116.61,0.00019999,2]
[351902041,1738833037879,-392.07820081,0.00019999,2]
[351902042,1738833037888,-500.0,0.00019999,2]
[351902043,1738833037899,-500.0,0.00019999,2]
[351902044,1738833037909,-500.0,0.00019999,2]
[351902045,1738833037919,-500.0,0.00019999,2]
[351902046,1738833037929,-534.65,0.00019999,2]
[351902047,1738833037938,-500.0,0.00019999,2]
[351902048,1738833037948,-500.0,0.00019999,2]
[351902049,1738833037958,-500.0,0.00019999,2]
[351902050,1738833037968,-500.0,0.00019999,2]
[351902051,1738833037977,-194.57572619,0.00019999,2]
[351902052,1738833037989,-305.42427381,0.00019999,2]
[351902053,1738833037998,-500.0,0.00019999,2]
[351902054,1738833038007,-407.76971639,0.0002,2]
[351902055,1738833038022,-579.62028361,0.0002,2]
[351902056,1738833038031,-151.48302939,0.0002,3]
[351902057,1738833038042,-348.51697061,0.0002,3]
[351902058,1738833038052,-500.0,0.0002,3]
[351902059,1738833038062,-500.0,0.0002,3]
[351902060,1738833038073,-200.0,0.0002,3]
[351902061,1738833038083,-200.0,0.0002,4]
[351902062,1738833038092,-177.38883594,0.0002,3]
[351902063,1738833038102,-501.27658727,0.0002,3]
[351902064,1738833038112,-200.0,0.0002,7]
[351902065,1738833038123,-200.0,0.0002,14]
[351902066,1738833038134,-415.85060618,0.0002,3]
[351902067,1738833038149,-84.48154205,0.0002,3]
[351902068,1738833038159,-500.0,0.0002,3]
[351902069,1738833038168,-287.26715094,0.0002,3]
[351902070,1738833038188,-212.73284906,0.0002,3]
[351902071,1738833038198,-299.17318796,0.0002,3]
[351902072,1738833038210,-200.82681204,0.0002,3]
[351902073,1738833038220,-267.57715094,0.0002,3]
[351902074,1738833038232,-233.35260191,0.0002,3]
[351902075,1738833038242,-500.0,0.0002,3]
[351902076,1738833038252,-500.0,0.0002,3]
[351902077,1738833038262,-500.0,0.0002,3]
[351902078,1738833038274,-500.0,0.0002,3]
[351902080,1738833038284,-21.347398,0.0002,3]
[351902082,1738833038297,-478.652602,0.0002,3]
[351902084,1738833038307,-88.42942843,0.0002,3]
[351902085,1738833038319,-411.57057157,0.0002,3]
[351902086,1738833038328,-500.0,0.0002,3]
[351902087,1738833038338,-380.95158646,0.0002,3]
[351902088,1738833038348,-500.0,0.0002,3]
[351902089,1738833038358,-500.0,0.0002,3]
[351902090,1738833038368,-500.0,0.0002,3]
[351902091,1738833038377,-500.0,0.0002,3]
[351902092,1738833038387,-500.0,0.0002,3]
[351902093,1738833038396,-500.0,0.0002,3]
[351902094,1738833038406,-500.0,0.0002,3]
[351902095,1738833038414,-500.0,0.0002,3]
[351902096,1738833038424,-500.0,0.0002,3]
[351902097,1738833038433,-231.3810914,0.0002,3]
[351902098,1738833038443,-500.0,0.0002,3]
[351902100,1738833038452,-500.0,0.0002,3]
[351902101,1738833038462,-500.0,0.0002,3]
[351902102,1738833038471,-500.0,0.0002,3]
[351902104,1738833038481,-475.76996278,0.0002,3]
[351902107,1738833038497,-24.23003722,0.0002,3]
[351902109,1738833038507,-500.0,0.0002,3]
[351902110,1738833038517,-500.0,0.0002,3]
[351902112,1738833038526,-500.0,0.0002,3]
[351902114,1738833038536,-500.0,0.0002,3]
[351902116,1738833038546,-500.0,0.0002,3]
[351902118,1738833038555,-500.0,0.0002,3]
[351902120,1738833038565,-500.0,0.0002,3]
[351902122,1738833038574,-500.0,0.0002,3]
[351902124,1738833038585,-500.0,0.0002,3]
[351902126,1738833038594,-215.26178678,0.0002,3]
[351902128,1738833038604,-500.0,0.0002,3]
[351902130,1738833038614,-500.0,0.0002,3]
[351902132,1738833038623,-500.0,0.0002,3]
[351902134,1738833038632,-500.0,0.0002,3]
[351902136,1738833038641,-500.0,0.0002,3]
[351902138,1738833038650,-500.0,0.0002,3]
[351902140,1738833038660,-500.0,0.0002,3]
[351902142,1738833038669,-500.0,0.0002,3]
[351902144,1738833038679,-500.0,0.0002,3]
[351902146,1738833038689,-500.0,0.0002,3]
[351902148,1738833038699,-500.0,0.0002,3]
[351902150,1738833038709,-500.0,0.0002,3]
[351902152,1738833038719,-176.66,0.0002,3]
[351902154,1738833038729,-500.0,0.0002,3]
[351902156,1738833038738,-500.0,0.0002,3]
[351902158,1738833038747,-500.0,0.0002,3]
[351902160,1738833038757,-500.0,0.0002,3]
[351902162,1738833038767,-500.0,0.0002,3]
[351902164,1738833038777,-500.0,0.0002,3]
[351902166,1738833038788,-500.0,0.0002,3]
[351902168,1738833038797,-500.0,0.0002,3]
[351902170,1738833038807,-500.0,0.0002,3]
[351902172,1738833038817,-500.0,0.0002,3]
[351902174,1738833038827,-500.0,0.0002,3]
[351902176,1738833038837,-500.0,0.0002,3]
[351902178,1738833038847,-500.0,0.0002,3]
[351902180,1738833038857,-500.0,0.0002,3]
[351902182,1738833038867,-500.0,0.0002,3]
[351902184,1738833038877,-500.0,0.0002,3]
[351902186,1738833038886,-500.0,0.0002,3]
[351902188,1738833038896,-500.0,0.0002,3]
[351902190,1738833038906,-500.0,0.0002,3]
[351902192,1738833038915,-500.0,0.0002,3]
[351902194,1738833038924,-500.0,0.0002,3]
[351902196,1738833038933,-500.0,0.0002,3]
[351902198,1738833038943,-500.0,0.0002,3]
[351902200,1738833038953,-410.29,0.0002,3]
[351902202,1738833038963,-500.0,0.0002,3]
[351902204,1738833038972,-500.0,0.0002,3]
[351902206,1738833038982,-182.69,0.0002,3]
[351902208,1738833038991,-222.51218307,0.0002,3]
[351902210,1738833039000,-500.0,0.0002,3]
[351902212,1738833039009,-500.0,0.0002,3]
[351902214,1738833039019,-358.9288247,0.0002,3]
[351902215,1738833039028,-500.0,0.0002,3]
[351902217,1738833039038,-500.0,0.0002,3]
[351902219,1738833039047,-500.0,0.0002,3]
[351902221,1738833039057,-301.88646233,0.0002,3]
[351902223,1738833039067,-500.0,0.0002,3]
[351902225,1738833039077,-500.0,0.0002,3]
[351902228,1738833039087,-500.0,0.0002,3]
[351902230,1738833039097,-500.0,0.0002,3]
[351902232,1738833039106,-500.0,0.0002,3]
[351902234,1738833039116,-500.0,0.0002,3]
[351902236,1738833039125,-500.0,0.0002,3]
[351902238,1738833039135,-500.0,0.0002,3]
[351902240,1738833039146,-500.0,0.0002,3]
[351902242,1738833039156,-500.0,0.0002,3]
[351902244,1738833039166,-500.0,0.0002,3]
[351902246,1738833039176,-500.0,0.0002,3]
[351902248,1738833039186,-500.0,0.0002,3]
[351902250,1738833039196,-500.0,0.0002,3]
[351902252,1738833039206,-288.92,0.0002,3]
[351902254,1738833039215,-500.0,0.0002,3]
[351902256,1738833039226,-500.0,0.0002,3]
[351902258,1738833039235,-500.0,0.0002,3]
[351902260,1738833039245,-500.0,0.0002,3]
[351902262,1738833039255,-500.0,0.0002,3]
[351902264,1738833039264,-500.0,0.0002,3]
[351902266,1738833039278,-500.0,0.0002,3]
[351902268,1738833039288,-500.0,0.0002,3]
[351902270,1738833039297,-500.0,0.0002,3]
[351902272,1738833039307,-500.0,0.0002,3]
[351902274,1738833039317,-500.0,0.0002,3]
[351902276,1738833039327,-500.0,0.0002,3]
[351902278,1738833039338,-500.0,0.0002,3]
[351902280,1738833039348,-500.0,0.0002,3]
[351902282,1738833039357,-500.0,0.0002,3]
[351902284,1738833039370,-500.0,0.0002,3]
[351902286,1738833039379,-500.0,0.0002,3]
[351902288,1738833039389,-268.98,0.0002,3]
[351902290,1738833039398,-500.0,0.0002,3]
[351902292,1738833039408,-500.0,0.0002,3]
[351902293,1738833039417,-500.0,0.0002,3]
[351902295,1738833039426,-500.0,0.0002,3]
[351902297,1738833039435,-500.0,0.0002,3]
[351902299,1738833039444,-500.0,0.0002,3]
[351902301,1738833039453,-500.0,0.0002,3]
[351902303,1738833039462,-500.0,0.0002,3]
[351902305,1738833039471,-500.0,0.0002,3]
[351902307,1738833039481,-500.0,0.0002,3]
[351902309,1738833039490,-500.0,0.0002,3]
[351902311,1738833039499,-49.6407059,0.0002,3]
[351902317,1738833039551,-450.3592941,0.0002,3]
[351902319,1738833039560,-500.0,0.0002,3]
[351902321,1738833039569,-500.0,0.0002,3]
[351902323,1738833039580,-577.94,0.0002,3]
[351902325,1738833039589,-500.0,0.0002,3]
[351902327,1738833039599,-500.0,0.0002,3]
[351902330,1738833039609,-500.0,0.0002,3]
[351902333,1738833039620,-500.0,0.0002,3]
[351902336,1738833039629,-500.0,0.0002,3]
[351902338,1738833039639,-500.0,0.0002,3]
[351902340,1738833039649,-500.0,0.0002,3]
[351902343,1738833039658,-500.0,0.0002,3]
[351902346,1738833039668,-500.0,0.0002,3]
[351902348,1738833039677,-500.0,0.0002,3]
[351902350,1738833039686,-500.0,0.0002,3]
[351902352,1738833039696,-500.0,0.0002,3]
[351902354,1738833039705,-500.0,0.0002,3]
[351902355,1738833039715,-500.0,0.0002,3]
[351902358,1738833039725,-345.03346865,0.0002,2]
[351902422,1738833040327,-3682.22653135,0.0002,2]
[351902424,1738833040337,-500.0,0.0002,3]
[351902426,1738833040347,-500.0,0.0002,3]
[351902428,1738833040356,-500.0,0.0002,3]
[351902430,1738833040365,-500.0,0.0002,3]
[351902432,1738833040375,-500.0,0.0002,3]
[351902434,1738833040383,-500.0,0.0002,3]
[351902436,1738833040392,-500.0,0.0002,3]
[351902438,1738833040401,-548.44926082,0.0002,3]
[351902440,1738833040411,-500.0,0.0002,3]
[351902442,1738833040420,-500.0,0.0002,3]
[351902444,1738833040429,-516.77130604,0.0002,3]
[351902446,1738833040439,-500.0,0.0002,3]
[351902447,1738833040447,-500.0,0.0002,3]
[351902449,1738833040458,-500.0,0.0002,3]
[351902451,1738833040467,-500.0,0.0002,3]
[351902453,1738833040477,-500.0,0.0002,3]
[351902455,1738833040486,-500.0,0.0002,3]
[351902457,1738833040495,-500.0,0.0002,3]
[351902459,1738833040504,-500.0,0.0002,3]
[351902461,1738833040513,-500.0,0.0002,3]
[351902463,1738833040523,-500.0,0.0002,3]
[351902465,1738833040533,-500.0,0.0002,3]
[351902467,1738833040544,-500.0,0.0002,3]
[351902469,1738833040553,-500.0,0.0002,3]
[351902471,1738833040563,-500.0,0.0002,3]
[351902473,1738833040573,-500.0,0.0002,3]
[351902475,1738833040582,-500.0,0.0002,3]
[351902477,1738833040592,-500.0,0.0002,3]
[351902478,1738833040601,-500.0,0.0002,3]
[351902479,1738833040610,-500.0,0.0002,3]
[351902480,1738833040620,-500.0,0.0002,3]
[351902481,1738833040629,-500.0,0.0002,3]
[351902482,1738833040638,-500.0,0.0002,3]
[351902483,1738833040647,-500.0,0.0002,3]
[351902484,1738833040655,-500.0,0.0002,3]
[351902485,1738833040665,-500.0,0.0002,3]
[351902486,1738833040674,-500.0,0.0002,3]
[351902487,1738833040683,-500.0,0.0002,3]
[351902488,1738833040691,-500.0,0.0002,3]
[351902489,1738833040700,-500.0,0.0002,3]
[351902490,1738833040710,-287.38,0.0002,3]
[351902491,1738833040719,-500.0,0.0002,3]
[351902492,1738833040728,-500.0,0.0002,3]